bitfinex/quotes_SOLUSD_20250514
["timestamp","ask_amount","ask_price","bid_price","bid_amount"]
[1747227713238,5.56544968,179.68,179.64,19.60576478]
[1747227713441,19.4790739,179.68,179.64,19.60576478]
[1747227713751,19.60576478,179.67,179.62,19.60576478]
[1747227713925,19.60576478,179.67,179.59,19.92]
[1747227714125,19.60576478,179.67,179.62,19.60576478]
[1747227714327,19.60576478,179.66,179.58,19.9]
[1747227714558,19.60576478,179.64,179.59,19.60576478]
[1747227714845,5.56699883,179.63,179.59,19.60576478]
[1747227715028,5.56699883,179.63,179.61,19.60576478]
[1747227715227,5.56699883,179.63,179.57,19.9]
[1747227715425,5.56699883,179.63,179.62,19.60576478]
[1747227715653,5.56452061,179.71,179.62,19.60576478]
[1747227715830,5.56452061,179.71,179.68,19.60576478]
[1747227716221,6.6359,179.79,179.7,19.60576478]
[1747227716466,5.56235398,179.78,179.74,19.60576478]
[1747227716927,19.46897296,179.78,179.74,19.60576478]
[1747227717832,39.07473774,179.78,179.66,45.74]
[1747227718169,39.07473774,179.78,179.73,19.60576478]
[1747227718671,19.60576478,179.77,179.66,45.74]
[1747227718958,19.47148817,179.75,179.71,19.60576478]
[1747227719136,19.60576478,179.74,179.69,19.60576478]
[1747227719345,19.60576478,179.72,179.67,19.92]
[1747227719534,19.60576478,179.72,179.67,19.60576478]
[1747227719739,19.60576478,179.72,179.65,19.92]
[1747227719740,19.60576478,179.73,179.68,19.60576478]
[1747227719946,19.60576478,179.72,179.67,19.60576478]
[1747227720369,19.60576478,179.7,179.66,19.60576478]
[1747227720662,19.60576478,179.71,179.66,19.60576478]
[1747227720827,19.60576478,179.7,179.65,19.92]
[1747227721146,19.47798986,179.69,179.65,39.52576478]
[1747227721863,5.56513996,179.69,179.68,19.60576478]
[1747227722943,19.60576478,179.74,179.68,19.60576478]
[1747227723268,75.23858814,179.75,179.7,19.60576478]
[1747227723425,55.63282336,179.75,179.68,39.62576478]
[1747227723623,47.42217646,179.75,179.7,19.60576478]
[1747227724268,19.60576478,179.74,179.68,20.02]
[1747227724425,19.60576478,179.73,179.69,19.60576478]
[1747227724632,19.60576478,179.73,179.68,20.02]
[1747227724633,19.60576478,179.74,179.68,20.02]
[1747227724849,39.07616976,179.76,179.72,19.60576478]
[1747227725089,19.46823895,179.78,179.75,19.60576478]
[1747227725234,19.46823895,179.78,179.76,19.60576478]
[1747227725561,5.56235398,179.78,179.77,19.60576478]
[1747227726160,5.56235398,179.78,179.75,20.06]
[1747227726536,19.46823895,179.78,179.74,19.60576478]
[1747227726733,19.60576478,179.77,179.73,39.64576478]
[1747227726931,19.46823895,179.78,179.73,39.64576478]
[1747227726932,19.60576478,179.78,179.73,39.64576478]
[1747227727266,19.60576478,179.76,179.71,19.60576478]
[1747227728363,19.60576478,179.78,179.74,19.60576478]
[1747227728873,19.60576478,179.79,179.74,19.60576478]
[1747227729081,25.16811876,179.78,179.69,1.6638]
[1747227729265,19.60576478,179.73,179.69,1.6638]
[1747227729577,19.60576478,179.72,179.66,20.06]
[1747227730085,19.60576478,179.72,179.67,19.60576478]
[1747227730267,19.60576478,179.71,179.62,19.74]
[1747227730443,19.60576478,179.69,179.63,20.06]
[1747227730647,19.60576478,179.69,179.64,19.60576478]
[1747227731042,5.56544968,179.68,179.64,19.60576478]
[1747227731351,39.08483868,179.68,179.62,19.74]
[1747227731548,19.60576478,179.67,179.62,19.60576478]
[1747227731752,19.60576478,179.65,179.61,20.06]
[1747227731953,19.60576478,179.65,179.61,39.66576478]
[1747227732555,19.60576478,179.65,179.61,20.06]
[1747227732964,19.60576478,179.65,179.6,19.60576478]
[1747227733275,39.08917604,179.64,179.59,19.60576478]
[1747227733487,19.60576478,179.61,179.54,9.28030303]
[1747227733653,19.60576478,179.59,179.54,9.28030303]
[1747227733984,19.60576478,179.57,179.54,9.28030303]
[1747227734157,19.60576478,179.55,179.54,9.28030303]
[1747227735283,25.17524403,179.55,179.54,9.28030303]
[1747227735508,5.56947925,179.55,179.54,9.28030303]
[1747227736290,25.17524403,179.55,179.54,9.28030303]
[1747227736521,5.56947925,179.55,179.54,9.28030303]
[1747227736822,19.60576478,179.59,179.54,28.88606781]
[1747227736984,5.56792873,179.6,179.57,19.60576478]
[1747227737183,39.09243032,179.61,179.54,29.40030303]
[1747227737391,39.09243032,179.61,179.56,19.60576478]
[1747227737639,5.56761872,179.61,179.58,19.60576478]
[1747227737792,5.56637907,179.65,179.6,19.60576478]
[1747227737986,45.60576478,179.62,179.54,9.28030303]
[1747227738296,19.60576478,179.61,179.55,19.60576478]
[1747227738495,26.0,179.64,179.58,19.60576478]
[1747227738802,19.60576478,179.63,179.58,19.60576478]
[1747227739200,13.91396644,179.68,179.61,19.60576478]
[1747227739402,5.56575944,179.67,179.65,19.60576478]
[1747227739989,13.91334327,179.69,179.65,19.60576478]
[1747227739990,5.56513996,179.69,179.66,19.60576478]
[1747227740195,5.56297285,179.76,179.68,19.60576478]
[1747227740413,5.56297285,179.76,179.69,19.60576478]
[1747227740592,13.90840025,179.75,179.71,19.60576478]
[1747227740788,25.16873763,179.76,179.71,19.60576478]
[1747227741100,5.5626634,179.77,179.73,19.60576478]
[1747227741297,5.5626634,179.77,179.72,20.28]
[1747227741492,5.5626634,179.77,179.74,28.96626906]
[1747227741694,5.5620446,179.79,179.75,28.96626906]
[1747227742683,5.5620446,179.79,179.76,28.96626906]
[1747227743116,5.5620446,179.79,179.75,28.96626906]
[1747227743405,19.46715611,179.79,179.72,20.28]
[1747227743593,5.5620446,179.79,179.76,28.96626906]
[1747227743785,5.5620446,179.79,179.72,20.28]
[1747227743985,5.5620446,179.79,179.78,28.96626906]
[1747227744593,5.56080742,179.83,179.78,28.96626906]
[1747227744795,5.56080742,179.83,179.81,28.96626906]
[1747227745023,5.56080742,179.83,179.82,28.96626906]
[1747227745189,5.5595708,179.87,179.82,28.96626906]
[1747227745392,5.55864369,179.9,179.86,28.96626906]
[1747227745588,5.55864369,179.9,179.89,57.93253812]
[1747227745917,19.4520091,179.93,179.83,52.9694]
[1747227746218,5.55771688,179.93,179.83,52.9694]
[1747227746514,5.55771688,179.93,179.91,28.96626906]
[1747227746901,28.96626906,179.92,179.82,28.96626906]
[1747227747223,5.55926173,179.88,179.84,28.96626906]
[1747227747410,34.52553079,179.88,179.83,49.46626906]
[1747227747607,5.55926173,179.88,179.83,49.46626906]
[1747227747831,5.55926173,179.88,179.86,28.96626906]
[1747227748212,5.55833472,179.91,179.87,28.96626906]
[1747227748606,5.55833472,179.91,179.89,28.96626906]
[1747227748805,5.55833472,179.91,179.83,20.5]
[1747227749005,5.55833472,179.91,179.87,28.96626906]
[1747227749259,5.55833472,179.91,179.83,20.5]
[1747227749260,48.41935931,179.92,179.83,20.5]
[1747227749557,28.96626906,179.91,179.86,28.96626906]
[1747227749756,28.96626906,179.91,179.86,49.50626906]
[1747227749936,19.45309025,179.92,179.88,28.96626906]
[1747227750514,28.96626906,179.91,179.86,49.50626906]
[1747227750939,28.96626906,179.9,179.86,20.54]
[1747227751149,42.86133353,179.92,179.87,28.96626906]
[1747227751337,13.8958368,179.91,179.87,28.96626906]
[1747227751664,5.55833472,179.91,179.89,28.96626906]
[1747227752011,5.55833472,179.91,179.9,28.96626906]
[1747227752244,5.55833472,179.91,179.89,28.96626906]
[1747227752549,5.55771688,179.93,179.89,28.96626906]
[1747227752727,34.52398594,179.93,179.88,28.96626906]
[1747227753240,28.96626906,179.92,179.88,20.54]
[1747227754268,48.41827816,179.93,179.88,49.50626906]
[1747227754635,5.55771688,179.93,179.9,28.96626906]
[1747227754827,5.55771688,179.93,179.92,28.96626906]
[1747227755149,28.96626906,179.99,179.92,28.96626906]
[1747227755380,28.96626906,179.99,179.94,28.96626906]
[1747227755757,5.55586421,179.99,179.95,28.96626906]
[1747227756080,5.55586421,179.99,179.96,28.96626906]
[1747227756392,5.55586421,179.99,179.95,49.46626906]
[1747227756852,5.55586421,179.99,179.96,28.96626906]
[1747227757443,5.55586421,179.99,179.97,28.96626906]
[1747227757644,5.55462978,180.03,179.98,28.96626906]
[1747227757846,5.55462978,180.03,180.01,28.96626906]
[1747227758451,5.55462978,180.03,180.0,28.96626906]
[1747227758672,13.88657445,180.03,180.0,28.96626906]
[1747227759468,13.88657445,180.03,179.99,28.96626906]
[1747227759661,13.88657445,180.03,180.0,28.96626906]
[1747227759891,13.88657445,180.03,179.95,20.5]
[1747227760053,42.85284351,180.03,179.95,20.5]
[1747227760251,28.96626906,180.02,179.97,28.96626906]
[1747227760673,19.44336425,180.01,179.97,28.96626906]
[1747227760955,19.44336425,180.01,179.99,28.96626906]
[1747227761182,5.55370432,180.06,180.0,57.93253812]
[1747227761386,5.55370432,180.06,180.0,28.96626906]
[1747227761559,5.55370432,180.06,180.05,28.96626906]
[1747227761766,5.55370432,180.06,180.05,49.60626906]
[1747227762284,5.55216256,180.11,180.05,49.60626906]
[1747227762486,5.55216256,180.11,180.1,28.96626906]
[1747227762673,13.87904839,180.13,180.1,28.96626906]
[1747227763186,13.87904839,180.13,180.09,49.56626906]
[1747227764171,13.87904839,180.13,180.09,20.6]
[1747227764565,13.87904839,180.13,180.09,49.56626906]
[1747227764760,48.39686355,180.13,180.09,20.6]
[1747227765067,28.96626906,180.12,180.07,49.60626906]
[1747227766796,48.39883803,180.11,180.06,28.96626906]
[1747227767095,28.96626906,180.08,180.04,22.2337]
[1747227767582,28.96626906,180.09,180.04,51.19996906]
[1747227767959,28.96626906,180.07,180.02,28.96626906]
[1747227768160,28.96626906,180.06,179.99,1.5649]
[1747227768415,28.96626906,180.04,179.99,1.5649]
[1747227768581,26.28432314,180.1,180.03,28.96626906]
[1747227768787,19.43472707,180.09,180.04,28.96626906]
[1747227769106,48.40099613,180.09,180.04,28.96626906]
[1747227770480,19.43472707,180.09,180.05,28.96626906]
[1747227770875,19.43472707,180.09,180.0,49.52626906]
[1747227771076,19.43472707,180.09,180.05,28.96626906]
[1747227771510,19.43472707,180.09,180.0,49.52626906]
[1747227771684,48.40099613,180.09,180.04,28.96626906]
[1747227771996,19.43472707,180.09,180.05,28.96626906]
[1747227772181,48.40099613,180.09,180.04,49.54626906]
[1747227772695,28.96626906,180.07,180.02,28.96626906]
[1747227772996,19.43796512,180.06,180.02,49.54626906]
[1747227773171,48.40423418,180.06,180.02,20.58]
[1747227773377,38.98640828,180.06,180.02,20.58]
[1747227774705,19.43796512,180.06,180.02,40.12844316]
[1747227776299,13.8842608,180.06,180.02,40.12844316]
[1747227776703,13.8842608,180.06,180.02,19.54844316]
[1747227776874,13.8842608,180.06,180.03,20.48]
[1747227777282,13.8842608,180.06,180.02,19.54844316]
[1747227777594,13.8842608,180.06,180.02,40.00844316]
[1747227777810,13.8842608,180.06,180.02,20.46]
[1747227778327,19.43796512,180.06,180.02,20.46]
[1747227778525,19.43796512,180.06,179.94,24.20700494]
[1747227778526,19.54844316,180.04,179.92,232.28755794]
[1747227778731,0.28432314,180.05,180.0,39.98844316]
[1747227779031,19.43796512,180.06,180.01,19.54844316]
[1747227779218,5.55370432,180.06,180.0,20.44]
[1747227779421,5.55370432,180.06,180.05,19.54844316]
[1747227779611,5.55370432,180.06,180.0,20.44]
[1747227779936,5.55370432,180.06,180.04,19.54844316]
[1747227780134,5.55370432,180.06,180.03,19.54844316]
[1747227780442,5.55370432,180.06,179.95,51.21916801]
[1747227780443,19.54844316,180.05,179.95,6.4325]
[1747227780620,19.54844316,180.04,179.99,19.54844316]
[1747227780824,19.8327663,180.05,179.99,19.54844316]
[1747227781220,19.8327663,180.05,179.95,19.54844316]
[1747227781221,19.54844316,180.0,179.95,19.54844316]
[1747227781625,19.54844316,180.0,179.96,20.42]
[1747227781849,19.54844316,180.0,179.95,19.54844316]
[1747227782012,19.54844316,179.98,179.93,39.94844316]
[1747227782213,19.54844316,179.97,179.92,19.54844316]
[1747227782413,19.54844316,179.97,179.92,39.94844316]
[1747227782612,19.44876638,179.96,179.92,19.54844316]
[1747227782863,19.54844316,179.95,179.9,19.54844316]
[1747227783147,19.44876638,179.96,179.89,20.58]
[1747227783148,19.54844316,179.93,179.89,20.38]
[1747227783516,19.54844316,179.94,179.89,39.92844316]
[1747227783715,19.59092795,179.96,179.89,20.38]
[1747227783922,19.8327663,179.95,179.9,19.54844316]
[1747227784115,19.8327663,179.95,179.89,20.38]
[1747227784337,19.8327663,179.95,179.9,19.54844316]
[1747227784534,19.45092808,179.94,179.9,19.54844316]
[1747227784931,19.45092808,179.94,179.89,20.38]
[1747227785239,19.45092808,179.94,179.9,19.54844316]
[1747227785466,38.99937124,179.94,179.89,39.92844316]
[1747227786269,19.45092808,179.94,179.9,19.54844316]
[1747227786482,19.54844316,179.93,179.88,39.90844316]
[1747227786643,19.45309025,179.92,179.88,39.90844316]
[1747227786841,19.45309025,179.92,179.89,19.54844316]
[1747227787563,5.69895196,179.96,179.91,19.54844316]
[1747227787769,5.55679039,179.96,179.88,20.36]
[1747227788090,19.44876638,179.96,179.92,19.54844316]
[1747227788742,38.99720954,179.96,179.9,19.54844316]
[1747227789089,38.99720954,179.96,179.88,20.36]
[1747227789090,38.99720954,179.96,179.91,19.54844316]
[1747227789495,5.55679039,179.96,179.93,19.54844316]
[1747227789699,5.55679039,179.96,179.94,19.54844316]
[1747227790464,19.44876638,179.96,179.92,19.54844316]
[1747227790786,19.44876638,179.96,179.87,27.5128]
[1747227790787,19.54844316,179.95,179.91,20.36]
[1747227791083,33.44041915,179.96,179.91,39.90844316]
[1747227792076,5.5561729,179.98,179.93,19.54844316]
[1747227792276,5.5561729,179.98,179.91,20.36]
[1747227792277,5.5561729,179.98,179.95,19.54844316]
[1747227792748,13.89043227,179.98,179.95,19.54844316]
[1747227793762,5.55524693,180.01,179.97,19.54844316]
[1747227793966,5.55524693,180.01,180.0,19.54844316]
[1747227794136,64.98532881,180.07,180.0,19.54844316]
[1747227794345,64.98532881,180.07,180.02,19.54844316]
[1747227794861,19.43688565,180.07,180.03,19.54844316]
[1747227795966,5.5533959,180.07,180.04,19.54844316]
[1747227796778,38.98458982,180.08,180.03,19.54844316]
[1747227796984,19.43614666,180.08,180.04,19.54844316]
[1747227797186,38.98458982,180.08,179.98,20.36]
[1747227797359,38.98458982,180.08,180.03,19.54844316]
[1747227797560,19.43614666,180.08,180.04,19.54844316]
[1747227798448,19.43614666,180.08,180.03,19.54844316]
[1747227799076,19.43614666,180.08,180.04,19.54844316]
[1747227799393,5.55308751,180.08,180.05,19.54844316]
[1747227799884,19.54844316,180.1,180.07,19.54844316]
[1747227799885,5.55247084,180.1,180.07,19.54844316]
[1747227800187,13.87856806,180.14,180.09,19.54844316]
[1747227800407,13.87856806,180.14,180.1,19.54844316]
[1747227800554,33.42701122,180.14,180.09,19.54844316]
[1747227800954,19.54844316,180.12,180.07,1.5657]
[1747227801185,19.54844316,180.11,180.06,19.54844316]
[1747227801485,19.43041136,180.13,180.07,19.54844316]
[1747227801486,19.8327663,180.12,180.07,19.54844316]
[1747227802489,19.43041136,180.13,180.09,19.54844316]
[1747227806090,38.97885452,180.13,180.08,19.54844316]
[1747227808091,19.43041136,180.13,180.09,19.54844316]
[1747227808887,19.43041136,180.13,180.11,19.54844316]
[1747227808888,5.5515461,180.13,180.11,19.54844316]
[1747227809188,59.42543716,180.16,180.12,19.54844316]
[1747227809189,5.55092978,180.15,180.12,19.54844316]
[1747227809388,5.55092978,180.15,180.09,19.54844316]
[1747227809389,5.55092978,180.15,180.14,19.54844316]
[1747227809591,5.55092978,180.15,180.14,26.61766895]
[1747227809792,13.876994,180.16,180.14,26.61766895]
[1747227810168,13.876994,180.16,180.07,26.0]
[1747227810495,40.49859934,180.16,180.11,26.62160534]
[1747227810999,26.62160534,180.14,180.03,1.5657]
[1747227811185,26.62160534,180.12,180.08,20.22]
[1747227811389,26.62160534,180.12,180.07,26.62160534]
[1747227811581,26.62160534,180.13,180.08,26.62160534]
[1747227811992,19.4314901,180.12,180.08,26.62160534]
[1747227812496,19.4314901,180.12,180.04,20.32]
[1747227812687,19.4314901,180.12,180.08,26.62160534]
[1747227813003,26.62160534,180.09,180.03,1.5657]
[1747227813204,26.62160534,180.09,179.99,20.32]
[1747227813205,26.62160534,180.07,179.99,1.5043]
[1747227813407,26.62160534,180.0,179.94,1.5043]
[1747227813572,26.62160534,179.99,179.95,26.62160534]
[1747227813778,26.62160534,179.99,179.94,26.62160534]
[1747227813994,19.44660517,179.98,179.96,26.62160534]
[1747227814191,19.44660517,179.98,179.97,26.62160534]
[1747227814192,5.5561729,179.98,179.97,26.62160534]
[1747227814400,5.5561729,179.98,179.92,66.54]
[1747227814401,5.5561729,179.98,179.92,46.32]
[1747227814576,5.5561729,179.98,179.96,26.67299204]
[1747227814893,5.5561729,179.98,179.95,26.67299204]
[1747227815508,46.11959721,179.98,179.91,26.0]
[1747227815712,19.44660517,179.98,179.92,20.2]
[1747227815881,19.44660517,179.98,179.94,26.67299204]
[1747227816498,46.11959721,179.98,179.94,26.67299204]
[1747227816698,19.44660517,179.98,179.92,20.2]
[1747227816901,19.44660517,179.98,179.95,26.67299204]
[1747227817699,19.44660517,179.98,179.94,26.67299204]
[1747227818414,46.12404388,179.98,179.91,26.0]
[1747227818699,26.67743871,179.96,179.91,46.85743871]
[1747227818925,26.67743871,179.97,179.92,26.67743871]
[1747227819208,72.40836702,179.98,179.93,26.67743871]
[1747227820403,26.67743871,179.97,179.92,26.67743871]
[1747227821288,46.12404388,179.98,179.93,26.67743871]
[1747227821488,19.44660517,179.98,179.94,26.67743871]
[1747227821994,46.12404388,179.98,179.93,26.67743871]
[1747227822382,19.44660517,179.98,179.94,26.67743871]
[1747227822590,19.44660517,179.98,179.95,26.67743871]
[1747227823304,19.44660517,179.98,179.9,21.6443]
[1747227823305,26.67743871,179.97,179.9,21.6443]
[1747227823682,26.67743871,179.96,179.91,26.67743871]
[1747227824103,26.67743871,179.96,179.9,1.5043]
[1747227824425,26.67743871,179.96,179.88,20.32]
[1747227824426,26.67743871,179.93,179.86,20.14]
[1747227824581,19.45309025,179.92,179.89,26.67743871]
[1747227825802,26.67743871,179.91,179.86,26.67743871]
[1747227826494,0.28432314,179.92,179.86,26.67743871]
[1747227826697,26.67743871,179.91,179.86,26.67743871]
[1747227828631,19.45525291,179.9,179.86,26.67743871]
[1747227829022,5.55864369,179.9,179.89,26.67743871]
[1747227829319,5.55864369,179.9,179.88,26.67743871]
[1747227829504,19.45525291,179.9,179.87,26.67743871]
[1747227829686,5.55864369,179.9,179.88,26.67743871]
[1747227829885,5.55864369,179.9,179.89,26.67743871]
[1747227830316,40.56982963,179.96,179.89,26.67743871]
[1747227830522,40.56982963,179.96,179.91,26.67743871]
[1747227830743,5.55709919,179.95,179.93,26.67743871]
[1747227831389,5.55709919,179.95,179.94,26.67743871]
[1747227831815,5.5561729,179.98,179.94,26.67743871]
[1747227832031,5.5561729,179.98,179.95,26.67743871]
[1747227832191,5.5561729,179.98,179.94,26.67743871]
[1747227832690,5.5561729,179.98,179.95,26.67743871]
[1747227832890,5.5561729,179.98,179.94,1.6533]
[1747227833323,5.5561729,179.98,179.95,26.67743871]
[1747227834821,46.12404388,179.98,179.93,26.67743871]
[1747227836123,26.67743871,179.96,179.89,1.6283]
[1747227836432,26.67743871,179.96,179.91,26.67743871]
[1747227837103,26.67743871,179.95,179.9,26.67743871]
[1747227837617,26.67743871,179.96,179.91,26.67743871]
[1747227837970,26.67743871,179.97,179.92,26.67743871]
[1747227838217,51.48320517,179.98,179.92,26.67743871]
[1747227838431,26.67743871,179.97,179.92,26.67743871]
[1747227838721,19.44660517,179.98,179.94,26.67743871]
[1747227839236,46.12404388,179.98,179.93,26.67743871]
[1747227839396,5.5561729,179.98,179.95,26.67743871]
[1747227839601,25.23144886,180.03,179.97,26.67743871]
[1747227839602,5.55493834,180.02,179.97,26.67743871]
[1747227839904,5.55493834,180.02,180.0,26.67743871]
[1747227840433,5.55432126,180.04,180.01,26.67743871]
[1747227842140,19.44012441,180.04,179.97,26.67743871]
[1747227842320,26.67743871,180.03,179.98,26.67743871]
[1747227842507,26.67743871,180.02,179.97,26.67743871]
[1747227843350,26.67743871,180.01,179.96,46.61743871]
[1747227843652,26.67743871,180.0,179.96,19.94]
[1747227843810,26.67743871,180.01,179.96,46.61743871]
[1747227844244,40.02796472,180.04,179.97,26.67743871]
[1747227844414,5.55493834,180.02,180.0,26.67743871]
[1747227845038,19.44228419,180.02,179.98,26.67743871]
[1747227845251,46.1197229,180.02,179.97,26.67743871]
[1747227845407,46.1197229,180.02,179.98,26.67743871]
[1747227845852,46.1197229,180.02,179.96,19.94]
[1747227846023,26.67743871,180.01,179.96,46.61743871]
[1747227846348,19.44444443,180.0,179.96,46.61743871]
[1747227846644,46.12188314,180.0,179.96,19.94]
[1747227846861,19.44444443,180.0,179.96,46.61743871]
[1747227848754,46.12188314,180.0,179.95,26.67743871]
[1747227849462,26.67743871,179.99,179.94,26.67743871]
[1747227849763,26.67743871,179.98,179.93,28.19073871]
[1747227850081,73.89966091,180.0,179.95,26.67743871]
[1747227850436,26.67743871,179.98,179.94,26.67743871]
[1747227850642,5.55648163,179.97,179.94,26.67743871]
[1747227851144,5.55648163,179.97,179.95,26.67743871]
[1747227851344,14.17277115,180.01,179.96,26.67743871]
[1747227851558,5.55555555,180.0,179.96,26.0]
[1747227851736,5.55555555,180.0,179.99,26.67743871]
[1747227852862,46.11797788,180.04,179.99,26.67743871]
[1747227853036,26.67743871,180.03,179.98,26.67743871]
[1747227854170,26.67743871,180.03,179.95,26.0]
[1747227854171,19.44053917,180.04,180.01,26.67743871]
[1747227854344,5.55432126,180.04,180.02,26.67743871]
[1747227854738,5.55432126,180.04,179.99,19.84]
[1747227854952,5.55432126,180.04,180.03,26.67743871]
[1747227855472,46.11487871,180.07,180.02,26.67743871]
[1747227855841,5.5533959,180.07,180.04,26.67743871]
[1747227856278,5.5533959,180.07,180.0,1.5207]
[1747227856666,5.5533959,180.07,180.03,26.67743871]
[1747227856849,19.43688565,180.07,180.04,26.67743871]
[1747227857052,46.11432436,180.07,180.02,26.67743871]
[1747227857354,19.43688565,180.07,180.03,26.67743871]
[1747227857662,19.43688565,180.07,180.05,26.67743871]
[1747227858269,5.5533959,180.07,180.05,26.67743871]
[1747227859280,5.55247084,180.1,180.06,26.67743871]
[1747227859460,5.55247084,180.1,180.08,26.67743871]
[1747227860346,5.55247084,180.1,180.07,26.67743871]
[1747227861362,13.88117712,180.1,180.07,26.67743871]
[1747227861577,5.55216256,180.11,180.08,26.67743871]
[1747227861891,5.55216256,180.11,180.1,26.67743871]
[1747227862853,5.55216256,180.11,180.06,19.96]
[1747227863059,5.55216256,180.11,180.08,26.67743871]
[1747227863242,5.55092978,180.15,180.1,26.67743871]
[1747227863447,5.55092978,180.15,180.11,26.67743871]
[1747227863674,46.10569294,180.15,180.1,26.67743871]
[1747227864873,5.55092978,180.15,180.13,26.67743871]
[1747227865462,5.54938956,180.2,180.14,26.67743871]
[1747227865652,32.22682827,180.2,180.15,26.67743871]
[1747227866061,26.67743871,180.19,180.14,26.67743871]
[1747227866387,26.67743871,180.15,180.09,26.67743871]
[1747227866548,26.67743871,180.11,180.05,1.614]
[1747227866878,26.67743871,180.09,180.04,26.67743871]
[1747227867178,6.4912,180.12,180.01,27.5187]
[1747227867179,26.67743871,180.08,180.02,19.94]
[1747227867387,19.43796512,180.06,180.0,39.86]
[1747227867586,16.65585688,180.05,180.0,16.65585688]
[1747227867758,16.65585688,180.04,179.99,36.57585688]
[1747227867955,16.65585688,180.05,180.0,16.65585688]
[1747227868380,16.65585688,180.04,179.99,36.57585688]
[1747227868795,16.65585688,180.05,180.0,16.65585688]
[1747227869503,26.6572931,180.05,180.0,26.6572931]
[1747227869811,5.55432126,180.04,180.02,26.6572931]
[1747227870115,19.44012441,180.04,180.01,26.6572931]
[1747227870674,19.44012441,180.04,180.0,26.6572931]
[1747227871108,46.09741751,180.04,179.99,46.5772931]
[1747227871498,19.44012441,180.04,179.99,19.92]
[1747227871819,26.66350369,180.03,179.99,19.92]
[1747227872029,26.66350369,180.03,179.97,1.5187]
[1747227872394,26.66350369,180.02,179.97,1.5187]
[1747227873119,26.66350369,180.0,179.95,19.92]
[1747227873546,6.92102314,180.03,179.91,21.4598]
[1747227873547,26.66350369,179.98,179.91,21.4598]
[1747227873708,46.1111894,179.97,179.91,21.4598]
[1747227873906,46.1111894,179.97,179.91,41.3598]
[1747227873907,19.44768571,179.97,179.91,41.3598]
[1747227874106,5.55648163,179.97,179.91,41.3598]
[1747227875572,32.21998532,179.97,179.91,21.4598]
[1747227875833,19.44768571,179.97,179.92,19.88]
[1747227876030,46.1111894,179.97,179.92,19.88]
[1747227876247,19.44768571,179.97,179.91,41.3798]
[1747227876532,46.1111894,179.97,179.91,41.3798]
[1747227876830,46.1111894,179.97,179.91,1.5198]
[1747227877899,19.44768571,179.97,179.91,1.5198]
[1747227878215,46.1111894,179.97,179.91,21.4198]
[1747227878728,19.44768571,179.97,179.91,21.4198]
[1747227879310,46.1111894,179.97,179.91,21.4198]
[1747227879518,19.44768571,179.97,179.91,21.4198]
[1747227879711,46.1111894,179.97,179.91,21.4198]
[1747227880544,46.1111894,179.97,179.92,26.0]
[1747227880545,5.55648163,179.97,179.92,26.0]
[1747227881206,13.88699461,180.03,179.96,26.0]
[1747227881611,26.66350369,180.05,179.96,26.0]
[1747227881826,13.88734585,180.02,179.96,26.0]
[1747227883011,13.88734585,180.02,179.94,18.64964886]
[1747227883243,13.88734585,180.02,179.96,26.0]
[1747227884425,40.55084954,180.02,179.96,26.0]
[1747227885116,26.66350369,180.0,179.96,19.76]
[1747227885344,26.66350369,179.99,179.94,19.76]
[1747227885516,26.66350369,179.98,179.91,21.2998]
[1747227885717,5.55679039,179.96,179.91,21.2998]
[1747227886318,19.44876638,179.96,179.91,21.2998]
[1747227887842,164.66350369,179.95,179.86,8.2943]
[1747227888032,26.66350369,179.94,179.87,19.8]
[1747227888352,26.66350369,179.94,179.87,45.8]
[1747227888723,26.66350369,179.94,179.86,1.6321]
[1747227888956,46.11443177,179.94,179.87,19.78]
[1747227890061,46.11443177,179.94,179.86,27.6321]
[1747227890252,46.11443177,179.94,179.87,19.76]
[1747227890609,19.45092808,179.94,179.87,19.76]
[1747227891255,46.11443177,179.94,179.87,19.76]
[1747227891471,164.66350369,179.93,179.86,1.6321]
[1747227891767,26.66350369,179.91,179.85,19.76]
[1747227891968,138.0,179.9,179.85,19.76]
[1747227892430,5.55895269,179.89,179.85,19.76]
[1747227893341,5.55895269,179.89,179.83,19.72]
[1747227893529,5.55895269,179.89,179.84,19.74]
[1747227896373,19.45633442,179.89,179.8,18.64964886]
[1747227896577,19.45633442,179.89,179.8,38.40964886]
[1747227896750,5.55895269,179.89,179.84,1.6424]
[1747227897289,5.55895269,179.89,179.84,20.29204886]
[1747227897650,5.55895269,179.89,179.84,40.03204886]
[1747227897850,5.55833472,179.91,179.86,26.0]
[1747227898114,5.55833472,179.91,179.87,19.76]
[1747227898258,5.55771688,179.93,179.87,19.76]
[1747227898650,19.4520091,179.93,179.87,19.76]
[1747227900154,63.92596504,179.93,179.87,19.76]
[1747227900383,63.92596504,179.93,179.8,12.08867856]
[1747227900384,26.0,179.88,179.74,6.36681051]
[1747227900682,16.6853715,179.82,179.73,1.5471]